[Event "*** Titled Tuesday Blitz"]
[Site "Chess.com"]
[Date "2020.05.05"]
[Round "2"]
[White "Volovier"]
[Black "Kassimov_B"]
[Result "1-0"]
[WhiteElo "2722"]
[BlackElo "2494"]
[TimeControl "180+1"]
[EndTime "10:18:33 PDT"]
[Termination "Volovier won by resignation"]

1. d4 {[%clk 0:03:00.9]} 1... Nf6 {[%clk 0:02:59.3]} 2. c4 {[%clk 0:03:00.2]}
2... b6 {[%clk 0:02:59.6]} 3. Nc3 {[%clk 0:02:58.3]} 3... Bb7 {[%clk 0:02:59.7]}
4. Nf3 {[%clk 0:02:58.2]} 4... g6 {[%clk 0:02:58]} 5. Bf4 {[%clk 0:02:58]} 5...
Bg7 {[%clk 0:02:57.8]} 6. e3 {[%clk 0:02:56.6]} 6... O-O {[%clk 0:02:57.6]} 7.
h3 {[%clk 0:02:54.3]} 7... d5 {[%clk 0:02:54.8]} 8. Be2 {[%clk 0:02:46.5]} 8...
Nbd7 {[%clk 0:02:46.5]} 9. O-O {[%clk 0:02:44.2]} 9... a6 {[%clk 0:02:44.3]} 10.
Ne5 {[%clk 0:02:43.2]} 10... Ne4 {[%clk 0:02:38]} 11. Nxd7 {[%clk 0:02:40.8]}
11... Nxc3 {[%clk 0:02:26.6]} 12. bxc3 {[%clk 0:02:41.7]} 12... Qxd7 {[%clk
0:02:26.5]} 13. cxd5 {[%clk 0:02:40.9]} 13... Bxd5 {[%clk 0:02:25.1]} 14. Bf3
{[%clk 0:02:38.8]} 14... e6 {[%clk 0:02:16.9]} 15. Bxd5 {[%clk 0:02:32.4]} 15...
exd5 {[%clk 0:02:16.4]} 16. Qc2 {[%clk 0:02:31.2]} 16... c5 {[%clk 0:02:05.9]}
17. Qb3 {[%clk 0:02:28.5]} 17... Qc6 {[%clk 0:02:01.2]} 18. Rab1 {[%clk
0:02:25.9]} 18... b5 {[%clk 0:01:59.1]} 19. a4 {[%clk 0:02:23.2]} 19... bxa4
{[%clk 0:01:27.6]} 20. Qb7 {[%clk 0:02:21.7]} 20... Rfc8 {[%clk 0:01:26.7]} 21.
Qxc6 {[%clk 0:02:19.7]} 21... Rxc6 {[%clk 0:01:26.5]} 22. Ra1 {[%clk 0:02:20.6]}
22... cxd4 {[%clk 0:01:22.7]} 23. cxd4 {[%clk 0:02:21.5]} 23... Rc4 {[%clk
0:01:07.2]} 24. Rfb1 {[%clk 0:02:20.8]} 24... Bf8 {[%clk 0:01:04.7]} 25. Rb6
{[%clk 0:02:19.6]} 25... a3 {[%clk 0:00:54.8]} 26. Bd6 {[%clk 0:02:17.9]} 26...
Ra4 {[%clk 0:00:47.2]} 27. Bxf8 {[%clk 0:02:15.5]} 27... Kxf8 {[%clk 0:00:46.7]}
28. Rb3 {[%clk 0:02:14.7]} 28... a2 {[%clk 0:00:43.4]} 29. Kf1 {[%clk
0:02:12.7]} 29... Ke7 {[%clk 0:00:37.4]} 30. Ke2 {[%clk 0:02:10.7]} 30... Ra7
{[%clk 0:00:36.9]} 31. Rb2 {[%clk 0:02:09.1]} 31... a5 {[%clk 0:00:29.2]} 32.
Rbxa2 {[%clk 0:02:07.1]} 32... Rxa2+ {[%clk 0:00:29.4]} 33. Rxa2 {[%clk
0:02:08]} 33... Kd6 {[%clk 0:00:25.8]} 34. Kd3 {[%clk 0:02:06.9]} 34... Kc6
{[%clk 0:00:24.9]} 35. g4 {[%clk 0:02:05.4]} 35... f5 {[%clk 0:00:23.2]} 36.
gxf5 {[%clk 0:02:03.6]} 36... gxf5 {[%clk 0:00:23.2]} 37. Kc3 {[%clk 0:02:04.3]}
37... h5 {[%clk 0:00:21.2]} 38. h4 {[%clk 0:02:02.3]} 38... Ra6 {[%clk
0:00:20.6]} 39. Ra1 {[%clk 0:02:00.1]} 39... Ra7 {[%clk 0:00:20.4]} 40. Rg1
{[%clk 0:01:58.1]} 40... Kb5 {[%clk 0:00:17.6]} 41. Rg5 {[%clk 0:01:56.5]} 41...
Rc7+ {[%clk 0:00:17.8]} 42. Kb2 {[%clk 0:01:54.3]} 42... Kc4 {[%clk 0:00:17.6]}
43. Rxf5 {[%clk 0:01:52.6]} 43... Rb7+ {[%clk 0:00:18.1]} 44. Ka2 {[%clk
0:01:52]} 44... Rb5 {[%clk 0:00:18.3]} 45. Rxh5 {[%clk 0:01:50.6]} 45... Kc3
{[%clk 0:00:17]} 46. f4 {[%clk 0:01:45.2]} 46... Kd3 {[%clk 0:00:16.8]} 47. Re5
{[%clk 0:01:43.3]} 47... Kc2 {[%clk 0:00:15.3]} 48. h5 {[%clk 0:01:40.4]} 48...
a4 {[%clk 0:00:14.5]} 49. h6 {[%clk 0:01:38.7]} 49... Kc3 {[%clk 0:00:13.1]} 50.
h7 {[%clk 0:01:37]} 50... Rb2+ {[%clk 0:00:12.3]} 51. Ka1 {[%clk 0:01:36.5]}
51... Rh2 {[%clk 0:00:10.7]} 52. Re7 {[%clk 0:01:24.9]} 52... a3 {[%clk
0:00:09.1]} 53. Rb7 {[%clk 0:01:22.9]} 53... Kd3 {[%clk 0:00:04.8]} 54. f5
{[%clk 0:01:19.6]} 54... Kxe3 {[%clk 0:00:03.5]} 55. f6 {[%clk 0:01:17.6]} 55...
Kxd4 {[%clk 0:00:03.9]} 56. f7 {[%clk 0:01:16.7]} 56... Rxh7 {[%clk 0:00:04.4]}
57. Rb4+ {[%clk 0:01:14]} 57... Kc5 {[%clk 0:00:03.5]} 58. f8=Q+ {[%clk
0:01:13.4]} 1-0

[Event "*** Titled Tuesday Blitz"]
[Site "Chess.com"]
[Date "2020.05.05"]
[Round "2"]
[White "Noam_Vitenberg"]
[Black "nadirsm"]
[Result "1-0"]
[WhiteElo "2500"]
[BlackElo "2142"]
[TimeControl "180+1"]
[EndTime "10:18:34 PDT"]
[Termination "Noam_Vitenberg won on time"]

1. d4 {[%clk 0:03:00.9]} 1... d5 {[%clk 0:02:58.8]} 2. c4 {[%clk 0:02:59.5]}
2... c6 {[%clk 0:02:58.7]} 3. Nf3 {[%clk 0:02:57.7]} 3... e6 {[%clk 0:02:59.2]}
4. e3 {[%clk 0:02:40.9]} 4... f5 {[%clk 0:02:58.9]} 5. Bd3 {[%clk 0:02:17]} 5...
Nf6 {[%clk 0:02:58]} 6. O-O {[%clk 0:02:16.6]} 6... Bd6 {[%clk 0:02:57.8]} 7. b3
{[%clk 0:02:14.8]} 7... Qe7 {[%clk 0:02:52.5]} 8. a4 {[%clk 0:02:04]} 8... O-O
{[%clk 0:02:33.1]} 9. Ba3 {[%clk 0:02:02.3]} 9... Nbd7 {[%clk 0:02:30.9]} 10.
Bxd6 {[%clk 0:01:55.6]} 10... Qxd6 {[%clk 0:02:31.1]} 11. Nbd2 {[%clk
0:01:52.3]} 11... Ne4 {[%clk 0:02:26.6]} 12. Ne1 {[%clk 0:01:43.7]} 12... Rf6
{[%clk 0:01:59.1]} 13. f3 {[%clk 0:01:41.5]} 13... Rh6 {[%clk 0:01:46.7]} 14.
fxe4 {[%clk 0:01:20.6]} 14... Qxh2+ {[%clk 0:01:45.2]} 15. Kf2 {[%clk
0:01:19.7]} 15... Qh4+ {[%clk 0:01:33.5]} 16. g3 {[%clk 0:00:50.9]} 16... Qh2+
{[%clk 0:01:32.7]} 17. Ng2 {[%clk 0:00:50.4]} 17... fxe4 {[%clk 0:01:32.5]} 18.
Nxe4 {[%clk 0:00:15]} 18... dxe4 {[%clk 0:01:28.9]} 19. Bxe4 {[%clk 0:00:15.9]}
19... Rf6+ {[%clk 0:01:18.4]} 20. Bf3 {[%clk 0:00:16.2]} 20... Rg6 {[%clk
0:01:18.3]} 21. g4 {[%clk 0:00:14.1]} 21... Nf6 {[%clk 0:00:57.9]} 22. Rh1
{[%clk 0:00:13.8]} 22... Qc7 {[%clk 0:00:51.9]} 23. Nf4 {[%clk 0:00:13.7]} 23...
Nxg4+ {[%clk 0:00:50.4]} 24. Bxg4 {[%clk 0:00:13.3]} 24... Rf6 {[%clk
0:00:44.9]} 25. Bf3 {[%clk 0:00:09.7]} 25... e5 {[%clk 0:00:44]} 26. Nh5 {[%clk
0:00:09.2]} 26... Rf8 {[%clk 0:00:34.9]} 27. Rg1 {[%clk 0:00:09.3]} 27... g6
{[%clk 0:00:16.6]} 28. Qd3 {[%clk 0:00:09.3]} 28... Bf5 {[%clk 0:00:14.1]} 29.
e4 {[%clk 0:00:09.4]} 29... Bd7 {[%clk 0:00:08.8]} 30. dxe5 {[%clk 0:00:07.1]}
30... Rad8 {[%clk 0:00:05.7]} 31. Nf6+ {[%clk 0:00:05.1]} 31... Kg7 {[%clk
0:00:02.7]} 32. Qe3 {[%clk 0:00:04.1]} 1-0

[Event "*** Titled Tuesday Blitz"]
[Site "Chess.com"]
[Date "2020.05.05"]
[Round "2"]
[White "TerorPtica"]
[Black "Shukh_Nikolay"]
[Result "1-0"]
[WhiteElo "2863"]
[BlackElo "2552"]
[TimeControl "180+1"]
[EndTime "10:18:35 PDT"]
[Termination "TerorPtica won by resignation"]

1. d4 {[%clk 0:03:00.9]} 1... Nf6 {[%clk 0:02:58.7]} 2. c4 {[%clk 0:03:00.6]}
2... e6 {[%clk 0:02:57.3]} 3. Nc3 {[%clk 0:03:01]} 3... d5 {[%clk 0:02:56.1]} 4.
cxd5 {[%clk 0:02:59.3]} 4... exd5 {[%clk 0:02:55.5]} 5. Bg5 {[%clk 0:02:59.8]}
5... Nbd7 {[%clk 0:02:55]} 6. e3 {[%clk 0:02:59.6]} 6... Be7 {[%clk 0:02:53.3]}
7. Bd3 {[%clk 0:02:58.7]} 7... c6 {[%clk 0:02:51.7]} 8. Qc2 {[%clk 0:02:56.2]}
8... Nf8 {[%clk 0:02:51.3]} 9. Nf3 {[%clk 0:02:53.4]} 9... g6 {[%clk 0:02:48.8]}
10. O-O-O {[%clk 0:02:46.5]} 10... Ne6 {[%clk 0:02:47.9]} 11. Bh4 {[%clk
0:02:44.5]} 11... Ng7 {[%clk 0:02:46]} 12. Ne5 {[%clk 0:02:35.5]} 12... O-O
{[%clk 0:02:43.5]} 13. f3 {[%clk 0:02:32.9]} 13... Nd7 {[%clk 0:02:21.8]} 14.
Bg3 {[%clk 0:02:20]} 14... Nxe5 {[%clk 0:02:21]} 15. Bxe5 {[%clk 0:02:20]} 15...
b5 {[%clk 0:02:17]} 16. Kb1 {[%clk 0:02:18.5]} 16... a5 {[%clk 0:01:58.9]} 17.
g4 {[%clk 0:02:17.8]} 17... Bh4 {[%clk 0:01:46.4]} 18. Ne2 {[%clk 0:02:08.5]}
18... Bd7 {[%clk 0:01:40.9]} 19. h3 {[%clk 0:01:59.5]} 19... Re8 {[%clk
0:01:40]} 20. e4 {[%clk 0:01:57.1]} 20... b4 {[%clk 0:01:26.4]} 21. Bg3 {[%clk
0:01:38.7]} 21... Bxg3 {[%clk 0:01:17.4]} 22. Nxg3 {[%clk 0:01:39.6]} 22... Qh4
{[%clk 0:01:17]} 23. Qg2 {[%clk 0:01:30.7]} 23... Ne6 {[%clk 0:01:15.6]} 24. Ne2
{[%clk 0:01:19.5]} 24... c5 {[%clk 0:00:55.9]} 25. dxc5 {[%clk 0:00:59]} 25...
Nxc5 {[%clk 0:00:55.2]} 26. exd5 {[%clk 0:00:59.3]} 26... Nxd3 {[%clk
0:00:54.7]} 27. Rxd3 {[%clk 0:00:59.5]} 27... Bb5 {[%clk 0:00:53.3]} 28. Rd2
{[%clk 0:00:59.5]} 28... Rad8 {[%clk 0:00:43.2]} 29. Ng3 {[%clk 0:00:58]} 29...
Qf6 {[%clk 0:00:32.1]} 30. Ne4 {[%clk 0:00:52.4]} 30... Qf4 {[%clk 0:00:27.2]}
31. g5 {[%clk 0:00:50.1]} 31... Re5 {[%clk 0:00:24.9]} 32. h4 {[%clk 0:00:47.2]}
32... Kg7 {[%clk 0:00:23.6]} 33. Rhd1 {[%clk 0:00:46.6]} 33... Bd7 {[%clk
0:00:22.3]} 34. Nf6 {[%clk 0:00:45.3]} 34... Bf5+ {[%clk 0:00:21.8]} 35. Ka1
{[%clk 0:00:45.8]} 35... Rc8 {[%clk 0:00:19.3]} 36. h5 {[%clk 0:00:44.6]} 36...
Qc4 {[%clk 0:00:18.3]} 37. h6+ {[%clk 0:00:44]} 37... Kh8 {[%clk 0:00:18]} 38.
Qg1 {[%clk 0:00:42.5]} 38... a4 {[%clk 0:00:17]} 39. d6 {[%clk 0:00:38.1]} 39...
a3 {[%clk 0:00:14.9]} 40. d7 {[%clk 0:00:37.4]} 40... Rd8 {[%clk 0:00:13.7]} 41.
Qd4 {[%clk 0:00:35]} 41... axb2+ {[%clk 0:00:13.4]} 42. Qxb2 {[%clk 0:00:33.7]}
42... Qc3 {[%clk 0:00:11.5]} 43. Rc1 {[%clk 0:00:30.7]} 43... Rc5 {[%clk
0:00:08.5]} 44. Rxc3 {[%clk 0:00:26.3]} 44... bxc3 {[%clk 0:00:08.4]} 45. Qb6
{[%clk 0:00:26.6]} 1-0

[Event "*** Titled Tuesday Blitz"]
[Site "Chess.com"]
[Date "2020.05.05"]
[Round "2"]
[White "pouya21"]
[Black "ThePatrick27"]
[Result "1-0"]
[WhiteElo "2793"]
[BlackElo "2525"]
[TimeControl "180+1"]
[EndTime "10:18:36 PDT"]
[Termination "pouya21 won by resignation"]

1. d4 {[%clk 0:03:00.9]} 1... Nf6 {[%clk 0:02:56.2]} 2. c4 {[%clk 0:03:01.2]}
2... e6 {[%clk 0:02:56.1]} 3. Nc3 {[%clk 0:03:00.1]} 3... d5 {[%clk 0:02:50]} 4.
cxd5 {[%clk 0:02:58.7]} 4... exd5 {[%clk 0:02:50.9]} 5. Bg5 {[%clk 0:02:58]}
5... c6 {[%clk 0:02:50.3]} 6. e3 {[%clk 0:02:57.8]} 6... Be7 {[%clk 0:02:46.6]}
7. Bd3 {[%clk 0:02:57.1]} 7... O-O {[%clk 0:02:45.2]} 8. Nge2 {[%clk 0:02:54.1]}
8... Nbd7 {[%clk 0:02:36.1]} 9. O-O {[%clk 0:02:52.8]} 9... Re8 {[%clk 0:02:36]}
10. Qc2 {[%clk 0:02:51.5]} 10... Nf8 {[%clk 0:02:35.4]} 11. f3 {[%clk
0:02:49.6]} 11... h6 {[%clk 0:02:33.1]} 12. Bh4 {[%clk 0:02:49]} 12... c5 {[%clk
0:02:10.6]} 13. Rad1 {[%clk 0:02:23.3]} 13... c4 {[%clk 0:01:35.2]} 14. Bf5
{[%clk 0:02:22.1]} 14... Bxf5 {[%clk 0:01:35.8]} 15. Qxf5 {[%clk 0:02:21.6]}
15... Qd7 {[%clk 0:01:34]} 16. Qc2 {[%clk 0:01:56.5]} 16... b5 {[%clk
0:01:16.1]} 17. Bxf6 {[%clk 0:01:53.3]} 17... Bxf6 {[%clk 0:01:17]} 18. Nf4
{[%clk 0:01:50.3]} 18... Bg5 {[%clk 0:00:59.6]} 19. Ncxd5 {[%clk 0:01:43.6]}
19... Ne6 {[%clk 0:00:56]} 20. Qf5 {[%clk 0:01:35.1]} 20... Rad8 {[%clk
0:00:52.2]} 21. h4 {[%clk 0:00:57.2]} 21... Nxf4 {[%clk 0:00:38.1]} 22. Qxd7
{[%clk 0:00:56.6]} 22... Rxd7 {[%clk 0:00:35.2]} 23. Nxf4 {[%clk 0:00:54]} 23...
Bxf4 {[%clk 0:00:32]} 24. exf4 {[%clk 0:00:54.9]} 24... Red8 {[%clk 0:00:32.6]}
25. Kf2 {[%clk 0:00:53.8]} 25... Rxd4 {[%clk 0:00:32.3]} 26. Rxd4 {[%clk
0:00:54.7]} 26... Rxd4 {[%clk 0:00:33.2]} 27. Ke3 {[%clk 0:00:55]} 27... Rd8
{[%clk 0:00:30.9]} 28. a4 {[%clk 0:00:50.9]} 28... a6 {[%clk 0:00:30.3]} 29.
axb5 {[%clk 0:00:51]} 29... axb5 {[%clk 0:00:31.2]} 30. Ra1 {[%clk 0:00:49.3]}
30... Rd3+ {[%clk 0:00:31.5]} 31. Ke2 {[%clk 0:00:47.4]} 31... Rb3 {[%clk
0:00:32.4]} 32. Ra2 {[%clk 0:00:45.7]} 32... h5 {[%clk 0:00:28.1]} 33. Kd2
{[%clk 0:00:44.9]} 33... Kh7 {[%clk 0:00:27.6]} 34. f5 {[%clk 0:00:45]} 34... g6
{[%clk 0:00:24.8]} 35. fxg6+ {[%clk 0:00:44.7]} 35... Kxg6 {[%clk 0:00:23.6]}
36. Kc2 {[%clk 0:00:44.9]} 36... Re3 {[%clk 0:00:23.1]} 37. Kd2 {[%clk
0:00:44.8]} 37... Rb3 {[%clk 0:00:22]} 38. Kc2 {[%clk 0:00:44.8]} 38... Re3
{[%clk 0:00:21.9]} 39. Ra6+ {[%clk 0:00:42.3]} 39... f6 {[%clk 0:00:21.4]} 40.
Rb6 {[%clk 0:00:40.7]} 40... Rb3 {[%clk 0:00:19]} 41. g4 {[%clk 0:00:39.7]}
41... hxg4 {[%clk 0:00:18]} 42. fxg4 {[%clk 0:00:40.6]} 42... Rg3 {[%clk
0:00:17.7]} 43. g5 {[%clk 0:00:40.7]} 43... b4 {[%clk 0:00:15.5]} 44. Rxb4
{[%clk 0:00:37.3]} 44... fxg5 {[%clk 0:00:15.3]} 45. hxg5 {[%clk 0:00:37.6]}
45... Rg4 {[%clk 0:00:14.9]} 46. Kc3 {[%clk 0:00:37.8]} 46... Kxg5 {[%clk
0:00:14.5]} 47. Rxc4 {[%clk 0:00:38.1]} 47... Rg3+ {[%clk 0:00:15]} 48. Kb4
{[%clk 0:00:37.9]} 48... Kf6 {[%clk 0:00:15.4]} 49. Rc3 {[%clk 0:00:35.3]} 49...
Rg8 {[%clk 0:00:14.7]} 50. Re3 {[%clk 0:00:32.8]} 1-0

[Event "*** Titled Tuesday Blitz"]
[Site "Chess.com"]
[Date "2020.05.05"]
[Round "2"]
[White "arminmusovic"]
[Black "124chess"]
[Result "0-1"]
[WhiteElo "2509"]
[BlackElo "2739"]
[TimeControl "180+1"]
[EndTime "10:18:36 PDT"]
[Termination "124chess won by checkmate"]

1. a3 {[%clk 0:03:00.9]} 1... d5 {[%clk 0:02:54]} 2. Nc3 {[%clk 0:03:01.2]} 2...
Nf6 {[%clk 0:02:50.1]} 3. d3 {[%clk 0:03:01.3]} 3... e6 {[%clk 0:02:46.3]} 4.
Bg5 {[%clk 0:03:00.8]} 4... Be7 {[%clk 0:02:46.5]} 5. e4 {[%clk 0:03:00.9]} 5...
O-O {[%clk 0:02:46.5]} 6. f4 {[%clk 0:03:00.5]} 6... h6 {[%clk 0:02:44.9]} 7.
Bxf6 {[%clk 0:02:59.9]} 7... Bxf6 {[%clk 0:02:44.9]} 8. e5 {[%clk 0:03:00.2]}
8... Be7 {[%clk 0:02:44.9]} 9. Nf3 {[%clk 0:02:59.7]} 9... c5 {[%clk 0:02:40.4]}
10. g3 {[%clk 0:03:00.1]} 10... Nc6 {[%clk 0:02:40.3]} 11. Bh3 {[%clk
0:02:55.8]} 11... b5 {[%clk 0:02:35.3]} 12. O-O {[%clk 0:02:53.2]} 12... b4
{[%clk 0:02:22.7]} 13. axb4 {[%clk 0:02:52.8]} 13... cxb4 {[%clk 0:02:23.6]} 14.
Ne2 {[%clk 0:02:53.2]} 14... a5 {[%clk 0:02:24.1]} 15. g4 {[%clk 0:02:51.3]}
15... a4 {[%clk 0:02:21.5]} 16. Ng3 {[%clk 0:02:46.7]} 16... a3 {[%clk
0:02:19.8]} 17. f5 {[%clk 0:02:36.3]} 17... Bd7 {[%clk 0:02:08.6]} 18. Nh5
{[%clk 0:02:26.4]} 18... axb2 {[%clk 0:01:34.4]} 19. Rb1 {[%clk 0:02:26.1]}
19... Bg5 {[%clk 0:01:07.9]} 20. f6 {[%clk 0:02:17.8]} 20... Be3+ {[%clk
0:01:05.7]} 21. Kh1 {[%clk 0:02:10.5]} 21... g6 {[%clk 0:01:06.1]} 22. Qe2
{[%clk 0:01:35.2]} 22... d4 {[%clk 0:00:57.7]} 23. g5 {[%clk 0:01:22.7]} 23...
hxg5 {[%clk 0:00:44.3]} 24. Ng7 {[%clk 0:01:15.1]} 24... Qc7 {[%clk 0:00:27.6]}
25. Bg2 {[%clk 0:00:54.2]} 25... Nxe5 {[%clk 0:00:25.7]} 26. Nxe5 {[%clk
0:00:54.4]} 26... Qxe5 {[%clk 0:00:25.7]} 27. Rxb2 {[%clk 0:00:52.6]} 27... Rac8
{[%clk 0:00:19.7]} 28. Rxb4 {[%clk 0:00:51.9]} 28... Bc6 {[%clk 0:00:20.1]} 29.
Rb6 {[%clk 0:00:42.8]} 29... Bxg2+ {[%clk 0:00:17.7]} 30. Qxg2 {[%clk
0:00:43.7]} 30... Qd5 {[%clk 0:00:14.5]} 31. Qxd5 {[%clk 0:00:39]} 31... exd5
{[%clk 0:00:15.4]} 32. Rb2 {[%clk 0:00:30.8]} 32... Rc6 {[%clk 0:00:13.7]} 33.
Ra1 {[%clk 0:00:21.4]} 33... Rxf6 {[%clk 0:00:11.8]} 34. Ra5 {[%clk 0:00:12.6]}
34... Kxg7 {[%clk 0:00:11.7]} 35. Rxd5 {[%clk 0:00:13.2]} 35... Rh8 {[%clk
0:00:12]} 36. Kg2 {[%clk 0:00:12.9]} 36... Rf2+ {[%clk 0:00:11.7]} 37. Kg3
{[%clk 0:00:13.8]} 37... Rhxh2 {[%clk 0:00:12.2]} 38. Rb7 {[%clk 0:00:14.7]}
38... Bf4+ {[%clk 0:00:12.5]} 39. Kg4 {[%clk 0:00:14.5]} 39... Rhg2+ {[%clk
0:00:13.2]} 40. Kh3 {[%clk 0:00:14.7]} 40... Rg3# {[%clk 0:00:13.8]} 0-1

[Event "*** Titled Tuesday Blitz"]
[Site "Chess.com"]
[Date "2020.05.05"]
[Round "2"]
[White "RaphaeI"]
[Black "AnonymusDonkey"]
[Result "1-0"]
[WhiteElo "2638"]
[BlackElo "2312"]
[TimeControl "180+1"]
[EndTime "10:18:36 PDT"]
[Termination "RaphaeI won by resignation"]

1. Nf3 {[%clk 0:03:00.9]} 1... Nf6 {[%clk 0:02:59]} 2. c4 {[%clk 0:03:01]} 2...
c6 {[%clk 0:02:59.2]} 3. Nc3 {[%clk 0:02:59.3]} 3... d5 {[%clk 0:02:59.4]} 4. e3
{[%clk 0:02:59.8]} 4... g6 {[%clk 0:02:58.6]} 5. d4 {[%clk 0:02:59.5]} 5... Bg7
{[%clk 0:02:58.4]} 6. Be2 {[%clk 0:03:00.2]} 6... O-O {[%clk 0:02:58.6]} 7. O-O
{[%clk 0:03:00.9]} 7... a6 {[%clk 0:02:59.1]} 8. cxd5 {[%clk 0:01:54]} 8... cxd5
{[%clk 0:02:58.3]} 9. Bd2 {[%clk 0:01:54.9]} 9... Nc6 {[%clk 0:02:56.7]} 10. Ne5
{[%clk 0:01:55.2]} 10... Nxe5 {[%clk 0:02:22.6]} 11. dxe5 {[%clk 0:01:54.7]}
11... Ne4 {[%clk 0:02:08.7]} 12. Nxe4 {[%clk 0:01:17.9]} 12... dxe4 {[%clk
0:02:09.6]} 13. Bc3 {[%clk 0:01:18.5]} 13... Qxd1 {[%clk 0:02:04]} 14. Rfxd1
{[%clk 0:01:07.3]} 14... Be6 {[%clk 0:02:04.4]} 15. a4 {[%clk 0:00:34.7]} 15...
Rfd8 {[%clk 0:01:57.3]} 16. a5 {[%clk 0:00:30.4]} 16... Bb3 {[%clk 0:01:54.3]}
17. Rdc1 {[%clk 0:00:26.6]} 17... Rac8 {[%clk 0:01:48.3]} 18. Bd4 {[%clk
0:00:26.6]} 18... Be6 {[%clk 0:01:41.4]} 19. b4 {[%clk 0:00:22.9]} 19... Rxc1+
{[%clk 0:01:40.3]} 20. Rxc1 {[%clk 0:00:22.4]} 20... Rc8 {[%clk 0:01:40.8]} 21.
Rxc8+ {[%clk 0:00:21.2]} 21... Bxc8 {[%clk 0:01:41.7]} 22. Bc4 {[%clk
0:00:20.5]} 22... e6 {[%clk 0:01:34.4]} 23. Kf1 {[%clk 0:00:20.2]} 23... Bd7
{[%clk 0:01:23.9]} 24. Ke2 {[%clk 0:00:19.7]} 24... Bc6 {[%clk 0:00:58.2]} 25.
Kd2 {[%clk 0:00:18.9]} 25... Kf8 {[%clk 0:00:57.9]} 26. Kc3 {[%clk 0:00:17.3]}
26... Ke8 {[%clk 0:00:57.9]} 27. Bb3 {[%clk 0:00:13]} 27... Kd7 {[%clk
0:00:57.7]} 28. Bc2 {[%clk 0:00:13.2]} 28... Bd5 {[%clk 0:00:55]} 29. h4 {[%clk
0:00:12.2]} 29... Kc6 {[%clk 0:00:49.3]} 30. Ba4+ {[%clk 0:00:12.2]} 30... Kc7
{[%clk 0:00:49.4]} 31. Be8 {[%clk 0:00:10.7]} 31... Kd8 {[%clk 0:00:44.8]} 32.
Bxf7 {[%clk 0:00:10.2]} 32... Ke7 {[%clk 0:00:39.7]} 33. Bg8 {[%clk 0:00:10.4]}
33... h5 {[%clk 0:00:37.4]} 34. Bc5+ {[%clk 0:00:10.6]} 34... Kd7 {[%clk
0:00:37.4]} 35. Kd4 {[%clk 0:00:11.1]} 35... Ke8 {[%clk 0:00:22.2]} 36. Bd6
{[%clk 0:00:10.1]} 36... Bf8 {[%clk 0:00:12.5]} 37. Kc5 {[%clk 0:00:07.8]} 37...
Bxd6+ {[%clk 0:00:07.1]} 38. Kxd6 {[%clk 0:00:08]} 1-0

[Event "*** Titled Tuesday Blitz"]
[Site "Chess.com"]
[Date "2020.05.05"]
[Round "2"]
[White "picturesquecheck"]
[Black "2346PL"]
[Result "1-0"]
[WhiteElo "2078"]
[BlackElo "2357"]
[TimeControl "180+1"]
[EndTime "10:18:37 PDT"]
[Termination "picturesquecheck won by resignation"]

1. e4 {[%clk 0:03:00.9]} 1... c5 {[%clk 0:02:59.7]} 2. Nf3 {[%clk 0:03:00.1]}
2... Nf6 {[%clk 0:03:00.2]} 3. e5 {[%clk 0:02:59.7]} 3... Nd5 {[%clk 0:03:00.3]}
4. Nc3 {[%clk 0:03:00.6]} 4... e6 {[%clk 0:03:00.6]} 5. d4 {[%clk 0:02:57.4]}
5... Nxc3 {[%clk 0:02:59.2]} 6. bxc3 {[%clk 0:02:57.4]} 6... d6 {[%clk
0:02:58.2]} 7. Bb5+ {[%clk 0:02:57.1]} 7... Bd7 {[%clk 0:02:57.9]} 8. Bxd7+
{[%clk 0:02:55.2]} 8... Nxd7 {[%clk 0:02:58.8]} 9. exd6 {[%clk 0:02:55.4]} 9...
Bxd6 {[%clk 0:02:58.1]} 10. O-O {[%clk 0:02:55.3]} 10... O-O {[%clk 0:02:57.3]}
11. Ba3 {[%clk 0:02:55.3]} 11... Qc7 {[%clk 0:02:54.8]} 12. Qe2 {[%clk
0:02:49.8]} 12... Rac8 {[%clk 0:02:49.4]} 13. Rfd1 {[%clk 0:02:41.2]} 13... cxd4
{[%clk 0:02:38.4]} 14. Bxd6 {[%clk 0:02:40.5]} 14... Qxd6 {[%clk 0:02:39.3]} 15.
cxd4 {[%clk 0:02:41]} 15... Rc3 {[%clk 0:02:35.4]} 16. Rd2 {[%clk 0:02:20.9]}
16... Rfc8 {[%clk 0:02:34]} 17. Ng5 {[%clk 0:02:15.4]} 17... Qc6 {[%clk
0:02:22.1]} 18. Rc1 {[%clk 0:02:03.7]} 18... Nf6 {[%clk 0:02:19.3]} 19. h4
{[%clk 0:01:52.3]} 19... h6 {[%clk 0:02:17.5]} 20. Nf3 {[%clk 0:01:51]} 20...
Qa4 {[%clk 0:02:05.2]} 21. Ne5 {[%clk 0:01:33.3]} 21... Qxa2 {[%clk 0:02:02.8]}
22. g4 {[%clk 0:01:30]} 22... Qb2 {[%clk 0:01:47.3]} 23. Rcd1 {[%clk 0:01:24.3]}
23... Rxc2 {[%clk 0:01:46.8]} 24. g5 {[%clk 0:01:24.4]} 24... hxg5 {[%clk
0:01:43.7]} 25. hxg5 {[%clk 0:01:23.8]} 25... Ne4 {[%clk 0:01:35.8]} 26. Rxc2
{[%clk 0:01:06.8]} 26... Qxc2 {[%clk 0:01:36.7]} 27. Qf3 {[%clk 0:01:05.4]}
27... Nxg5 {[%clk 0:01:34.8]} 28. Qg4 {[%clk 0:01:04.8]} 28... Qf5 {[%clk
0:01:24]} 29. Qxf5 {[%clk 0:00:45.6]} 29... exf5 {[%clk 0:01:24.9]} 30. d5
{[%clk 0:00:45.9]} 30... Rd8 {[%clk 0:01:18.6]} 31. d6 {[%clk 0:00:42.7]} 31...
f6 {[%clk 0:01:16.2]} 32. Nc4 {[%clk 0:00:42.1]} 32... Kf7 {[%clk 0:01:08.9]}
33. Rb1 {[%clk 0:00:41.1]} 33... Rd7 {[%clk 0:01:05.8]} 34. Na5 {[%clk
0:00:39.2]} 34... b6 {[%clk 0:00:59.9]} 35. Nc4 {[%clk 0:00:38.4]} 35... Nf3+
{[%clk 0:00:57.2]} 36. Kg2 {[%clk 0:00:34.4]} 36... Ne5 {[%clk 0:00:58.1]} 37.
Ne3 {[%clk 0:00:31.8]} 37... f4 {[%clk 0:00:53.7]} 38. Nf5 {[%clk 0:00:28.6]}
38... g6 {[%clk 0:00:48.3]} 39. Ne7 {[%clk 0:00:28.6]} 39... Rxd6 {[%clk
0:00:46.8]} 40. Nc8 {[%clk 0:00:27.5]} 40... Rd7 {[%clk 0:00:44.5]} 41. Ra1
{[%clk 0:00:25.4]} 41... Rc7 {[%clk 0:00:39.6]} 42. Nxa7 {[%clk 0:00:23.9]}
42... g5 {[%clk 0:00:39.1]} 43. Nb5 {[%clk 0:00:23.6]} 43... Kg6 {[%clk
0:00:37.2]} 44. Nxc7 {[%clk 0:00:23]} 44... g4 {[%clk 0:00:36.9]} 45. Nd5 {[%clk
0:00:21.9]} 45... b5 {[%clk 0:00:36.2]} 46. Nxf4+ {[%clk 0:00:21.4]} 46... Kf5
{[%clk 0:00:36]} 47. Nd5 {[%clk 0:00:21.2]} 47... Ke6 {[%clk 0:00:31.5]} 48. Ne3
{[%clk 0:00:19.1]} 48... f5 {[%clk 0:00:31.4]} 49. Rb1 {[%clk 0:00:17.4]} 49...
f4 {[%clk 0:00:30.2]} 50. Nc2 {[%clk 0:00:17.1]} 1-0